[Event "Festival Groningen-A 2024"]
[Site "Groningen"]
[Date "2024.12.24"]
[Round "4.27"]
[White "Duijker, Rick"]
[Black "Groenewoud, Joel"]
[Result "1/2-1/2"]
[ECO "D00"]
[WhiteElo "2146"]
[BlackElo "2058"]
[Annotator "RC"]
[PlyCount "122"]
[EventDate "2024.12.21"]
[EventType "swiss"]
[EventCountry "NED"]
[SourceTitle "playchess.com"]
[Source "ChessBase"]
[SourceQuality "1"]
[TimeControl "40/5400+30:1800+30"]

1. d4 {[%emt 0:00:05]} Nf6 {[%emt 0:00:14]} 2. Bg5 {[%emt 0:00:09]} d5 {[%emt 0:00:45]} 3. e3 {[%emt 0:00:22]} c5 {[%emt 0:00:27]} 4. Bxf6 {[%emt 0:01:46]} gxf6 {[%emt 0:00:06]} 5. c4 {[%emt 0:00:46]} dxc4 {[%emt 0:10:18]} 6. Bxc4 {[%emt 0:01:02]} cxd4 {[%emt 0:00:14]} 7. exd4 {[%emt 0:00:09]} Nc6 {[%emt 0:00:19]} 8. Nf3 {[%emt 0:04:58]} Bg4 {[%emt 0:03:12]} 9. d5 {[%emt 0:06:21]} Qa5+ {[%emt 0:09:04]} 10. Nc3 {[%emt 0:02:33]} O-O-O {[%emt 0:02:39]} 11. Be2 {[%emt 0:14:27]} Nb4 {[%emt 0:36:56]} 12. O-O {[%emt 0:01:12]} Nxd5 {[%emt 0:01:55]} 13. Nxd5 {[%emt 0:04:02]} Rxd5 {[%emt 0:01:51]} 14. Qc1+ {[%emt 0:01:49]} Qc7 {[%emt 0:01:30]} 15. Qe3 {[%emt 0:05:10]} Kb8 {[%emt 0:00:33]} 16. Rac1 {[%emt 0:02:54]} Qd7 {[%emt 0:06:05]} 17. Qf4+ {[%emt 0:22:04]} Rd6 {[%emt 0:00:31]} 18. Rfd1 {[%emt 0:02:55]} e5 {[%emt 0:03:59]} 19. Nxe5 {[%emt 0:11:44]} fxe5 {[%emt 0:00:23]} 20. Qxe5 {[%emt 0:03:03]} f6 {[%emt 0:08:21]} 21. Bxg4 {[%emt 0:00:45]} fxe5 {[%emt 0:00:27]} 22. Bxd7 {[%emt 0:00:36]} Rxd1+ {[%emt 0:01:25]} 23. Rxd1 {[%emt 0:00:03]} Kc7 {[%emt 0:00:27]} 24. Bf5 {[%emt 0:00:39]} Bd6 {[%emt 0:00:58]} 25. Rc1+ {[%emt 0:03:45]} Kb6 {[%emt 0:00:40]} 26. Rc3 {[%emt 0:02:15]} a5 {[%emt 0:02:53]} 27. Be4 {[%emt 0:00:37]} a4 {[%emt 0:01:03]} 28. g3 {[%emt 0:02:46]} h6 {[%emt 0:02:08]} 29. Rf3 {[%emt 0:01:05]} Rf8 {[%emt 0:00:26]} 30. Rxf8 {[%emt 0:02:34]} Bxf8 {[%emt 0:00:04]} 31. Kg2 {[%emt 0:00:12]} a3 {[%emt 0:03:36]} 32. bxa3 {[%emt 0:00:16]} Bxa3 {[%emt 0:00:05]} 33. Kh3 {[%emt 0:00:22]} Kc7 {[%emt 0:01:50]} 34. Kg4 {[%emt 0:00:21]} Bc5 {[%emt 0:00:46]} 35. Kh5 {[%emt 0:00:43]} Bf8 {[%emt 0:00:56]} 36. h4 {[%emt 0:01:59]} b6 {[%emt 0:00:06]} 37. g4 {[%emt 0:00:58]} Kd7 {[%emt 0:00:13]} 38. g5 {[%emt 0:01:03]} hxg5 {[%emt 0:00:11]} 39. hxg5 {[%emt 0:00:20]} Ke6 {[%emt 0:00:41]} 40. f3 {[%emt 0:00:42]} Bc5 {[%emt 0:00:23]} 41. Kg6 {[%emt 0:30:24]} Be3 {[%emt 0:30:15]} 42. Bc2 {[%emt 0:00:00]} Ke7 {[%emt 0:00:00]} 43. Bb3 {[%emt 0:00:00]} Kf8 {[%emt 0:00:00]} 44. Bd5 {[%emt 0:00:00]} Bd2 {[%emt 0:00:00]} 45. Kf6 {[%emt 0:00:00]} Bc3 {[%emt 0:00:00]} 46. Be4 {[%emt 0:00:00]} Bd2 {[%emt 0:00:00]} 47. g6 {[%emt 0:00:00]} Bh6 {[%emt 0:00:00]} 48. Bd5 {[%emt 0:00:00]} Bg7+ {[%emt 0:00:00]} 49. Ke6 {[%emt 0:00:00]} Bh6 {[%emt 0:00:00]} 50. Kxe5 {[%emt 0:01:11]} Bg7+ {[%emt 0:00:00]} 51. Ke6 {[%emt 0:00:33]} Bc3 {[%emt 0:00:00]} 52. f4 {[%emt 0:00:56]} Kg7 {[%emt 0:00:00]} 53. Be4 {[%emt 0:00:25]} Bb2 {[%emt 0:00:00]} 54. a4 {[%emt 0:00:26]} Bc3 {[%emt 0:00:00]} 55. Kd5 {[%emt 0:00:40]} Bb2 {[%emt 0:00:00]} 56. Bd3 {[%emt 0:00:15]} Ba1 {[%emt 0:00:00]} 57. Kd6 {[%emt 0:01:16]} Bb2 {[%emt 0:00:00]} 58. Kc6 {[%emt 0:00:30]} Bd4 {[%emt 0:00:00]} 59. Kb5 {[%emt 0:00:19]} Be3 {[%emt 0:00:00]} 60. Kc6 {[%emt 0:00:23]} Bd4 {[%emt 0:00:00]} 61. Kb5 {[%emt 0:00:28]} Be3 {[%emt 0:00:00]} 1/2-1/2

[Event "Festival Groningen-A 2024"]
[Site "Groningen"]
[Date "2024.12.24"]
[Round "4.28"]
[White "Mareau, Timothe"]
[Black "Mohammed, Dilshad"]
[Result "1-0"]
[ECO "B13"]
[WhiteElo "2168"]
[BlackElo "2078"]
[Annotator "RC"]
[PlyCount "100"]
[EventDate "2024.12.21"]
[EventType "swiss"]
[EventCountry "NED"]
[SourceTitle "playchess.com"]
[Source "ChessBase"]
[SourceQuality "1"]
[TimeControl "40/5400+30:1800+30"]

1. e4 {[%emt 0:00:08]} c6 {[%emt 0:00:15]} 2. d4 {[%emt 0:00:14]} d5 {[%emt 0:00:04]} 3. exd5 {[%emt 0:00:23]} cxd5 {[%emt 0:00:08]} 4. Bd3 {[%emt 0:00:05]} Nc6 {[%emt 0:00:17]} 5. c3 {[%emt 0:00:05]} Nf6 {[%emt 0:01:15]} 6. Bf4 {[%emt 0:00:06]} e6 {[%emt 0:01:17]} 7. Nf3 {[%emt 0:01:01]} Bd6 {[%emt 0:00:20]} 8. Bxd6 {[%emt 0:01:05]} Qxd6 {[%emt 0:00:02]} 9. O-O {[%emt 0:00:19]} Ne4 {[%emt 0:01:12]} 10. Re1 {[%emt 0:10:34]} f5 {[%emt 0:00:32]} 11. Bb5 {[%emt 0:08:01]} O-O {[%emt 0:02:41]} 12. Bxc6 {[%emt 0:01:58]} bxc6 {[%emt 0:00:13]} 13. Ne5 {[%emt 0:01:14]} c5 {[%emt 0:01:31]} 14. f3 {[%emt 0:00:44]} Nf6 {[%emt 0:00:42]} 15. Nd2 {[%emt 0:09:15]} Rb8 {[%emt 0:01:26]} 16. Re2 {[%emt 0:14:04]} Ba6 {[%emt 0:03:37]} 17. Rf2 {[%emt 0:03:20]} cxd4 {[%emt 0:09:20]} 18. cxd4 {[%emt 0:00:13]} Rxb2 {[%emt 0:03:55]} 19. Ndc4 {[%emt 0:00:15]} dxc4 {[%emt 0:00:03]} 20. Rxb2 {[%emt 0:00:07]} c3 {[%emt 1:11:40]} 21. Rf2 {[%emt 0:05:02]} Rd8 {[%emt 0:00:00]} 22. Qb3 {[%emt 0:02:30]} Nd5 {[%emt 0:00:00]} 23. Re1 {[%emt 0:03:22]} Rc8 {[%emt 0:00:00]} 24. f4 {[%emt 0:05:53]} Nf6 {[%emt 0:00:00]} 25. Nf3 {[%emt 0:01:14]} Ne4 {[%emt 0:00:00]} 26. Ng5 {[%emt 0:03:02]} Nxf2 {[%emt 0:00:00]} 27. Rxe6 {[%emt 0:00:20]} Bc4 {[%emt 0:00:00]} 28. Re8+ {[%emt 0:00:06]} Qf8 {[%emt 0:00:00]} 29. Rxf8+ {[%emt 0:00:06]} Kxf8 {[%emt 0:00:00]} 30. Qa3+ {[%emt 0:00:22]} Kg8 {[%emt 0:00:00]} 31. Kxf2 {[%emt 0:00:06]} c2 {[%emt 0:00:00]} 32. Qc1 {[%emt 0:00:53]} Bxa2 {[%emt 0:00:00]} 33. Nf3 {[%emt 0:00:41]} a5 {[%emt 0:00:00]} 34. Ne1 {[%emt 0:05:11]} a4 {[%emt 0:00:00]} 35. Nd3 {[%emt 0:00:33]} Rc4 {[%emt 0:00:00]} 36. Ke3 {[%emt 0:01:16]} Bb3 {[%emt 0:00:00]} 37. Qb2 {[%emt 0:01:29]} h6 {[%emt 0:00:00]} 38. Kd2 {[%emt 0:00:06]} Kh7 {[%emt 0:00:00]} 39. Kc1 {[%emt 0:00:33]} h5 {[%emt 0:00:00]} 40. Nc5 {[%emt 0:01:17]} Rb4 {[%emt 0:00:00]} 41. g3 {[%emt 0:30:48]} Rb5 {[%emt 0:28:38]} 42. Qa3 {[%emt 0:01:58]} h4 {[%emt 0:02:36]} 43. Nxa4 {[%emt 0:00:29]} h3 {[%emt 0:03:14]} 44. Nc5 {[%emt 0:00:11]} Bd5 {[%emt 0:00:17]} 45. Kxc2 {[%emt 0:00:18]} Rb8 {[%emt 0:00:04]} 46. Qa7 {[%emt 0:03:35]} Rb4 {[%emt 0:03:44]} 47. Qd7 {[%emt 0:00:35]} Rxd4 {[%emt 0:00:17]} 48. Qxf5+ {[%emt 0:00:07]} Kg8 {[%emt 0:00:09]} 49. Qxh3 {[%emt 0:00:46]} Rc4+ {[%emt 0:00:13]} 50. Kd3 {[%emt 0:00:04]} Rxc5 {[%emt 0:05:48]} 1-0

[Event "Festival Groningen-A 2024"]
[Site "Groningen"]
[Date "2024.12.24"]
[Round "4.29"]
[White "Duson, Robin"]
[Black "Spit, Vincent"]
[Result "1/2-1/2"]
[ECO "D87"]
[WhiteElo "2159"]
[BlackElo "2113"]
[Annotator "RC"]
[PlyCount "137"]
[EventDate "2024.12.21"]
[EventType "swiss"]
[EventCountry "NED"]
[SourceTitle "playchess.com"]
[Source "ChessBase"]
[SourceQuality "1"]
[TimeControl "40/5400+30:1800+30"]

1. d4 {[%emt 0:00:07]} Nf6 {[%emt 0:00:08]} 2. c4 {[%emt 0:00:06]} g6 {[%emt 0:00:12]} 3. Nc3 {[%emt 0:00:15]} d5 {[%emt 0:00:09]} 4. cxd5 {[%emt 0:00:22]} Nxd5 {[%emt 0:00:08]} 5. e4 {[%emt 0:00:18]} Nxc3 {[%emt 0:00:33]} 6. bxc3 {[%emt 0:00:09]} Bg7 {[%emt 0:00:19]} 7. Bc4 {[%emt 0:00:37]} c5 {[%emt 0:01:05]} 8. Ne2 {[%emt 0:00:15]} O-O {[%emt 0:01:47]} 9. Be3 {[%emt 0:02:10]} Nc6 {[%emt 0:02:20]} 10. O-O {[%emt 0:00:15]} b6 {[%emt 0:01:39]} 11. Qd2 {[%emt 0:02:36]} Bb7 {[%emt 0:04:48]} 12. Rac1 {[%emt 0:00:48]} e6 {[%emt 0:02:10]} 13. Rfd1 {[%emt 0:05:40]} Qd7 {[%emt 0:04:25]} 14. h4 {[%emt 0:04:55]} Rac8 {[%emt 0:03:14]} 15. h5 {[%emt 0:04:12]} cxd4 {[%emt 0:02:26]} 16. cxd4 {[%emt 0:00:35]} Na5 {[%emt 0:00:26]} 17. Bd3 {[%emt 0:00:52]} Rxc1 {[%emt 0:01:02]} 18. Rxc1 {[%emt 0:01:20]} Rc8 {[%emt 0:01:34]} 19. h6 {[%emt 0:03:20]} Bh8 {[%emt 0:06:50]} 20. Rxc8+ {[%emt 0:10:40]} Qxc8 {[%emt 0:01:54]} 21. Qb4 {[%emt 0:04:05]} Bf6 {[%emt 0:05:51]} 22. e5 {[%emt 0:05:58]} Nc6 {[%emt 0:08:08]} 23. Qd2 {[%emt 0:06:10]} Be7 {[%emt 0:02:03]} 24. Bg5 {[%emt 0:02:41]} Qd8 {[%emt 0:05:04]} 25. Bxe7 {[%emt 0:01:47]} Qxe7 {[%emt 0:00:10]} 26. Be4 {[%emt 0:04:55]} Qd7 {[%emt 0:07:07]} 27. Qe3 {[%emt 0:08:25]} Nb4 {[%emt 0:10:03]} 28. Bxb7 {[%emt 0:02:14]} Qxb7 {[%emt 0:00:06]} 29. Qg5 {[%emt 0:00:48]} Qb8 {[%emt 0:00:33]} 30. Nc3 {[%emt 0:05:42]} Qf8 {[%emt 0:02:32]} 31. g4 {[%emt 0:04:07]} a6 {[%emt 0:04:23]} 32. a4 {[%emt 0:05:22]} Nd5 {[%emt 0:02:44]} 33. Nxd5 {[%emt 0:01:16]} exd5 {[%emt 0:00:04]} 34. Qc1 {[%emt 0:02:15]} b5 {[%emt 0:01:29]} 35. axb5 {[%emt 0:03:06]} axb5 {[%emt 0:00:06]} 36. g5 {[%emt 0:00:43]} b4 {[%emt 0:00:34]} 37. Qc6 {[%emt 0:00:52]} Qd8 {[%emt 0:02:08]} 38. Kf1 {[%emt 0:01:36]} b3 {[%emt 0:04:45]} 39. Qb7 {[%emt 0:02:32]} Kf8 {[%emt 0:01:41]} 40. Qb4+ {[%emt 0:03:46]} Ke8 {[%emt 0:00:29]} 41. Qxb3 {[%emt 0:04:46]} Qxg5 {[%emt 0:01:07]} 42. Qxd5 {[%emt 0:02:44]} Qxh6 {[%emt 0:43:14]} 43. Qc6+ {[%emt 0:01:12]} Ke7 {[%emt 0:00:00]} 44. Qf6+ {[%emt 0:00:29]} Ke8 {[%emt 0:00:00]} 45. Kg2 {[%emt 0:02:20]} Qd2 {[%emt 0:00:00]} 46. e6 {[%emt 0:01:25]} fxe6 {[%emt 0:00:00]} 47. Qxe6+ {[%emt 0:00:06]} Kf8 {[%emt 0:00:00]} 48. d5 {[%emt 0:01:31]} Qg5+ {[%emt 0:00:00]} 49. Kf3 {[%emt 0:01:25]} Qe7 {[%emt 0:00:00]} 50. Qc6 {[%emt 0:01:34]} Qf7+ {[%emt 0:00:00]} 51. Kg3 {[%emt 0:01:40]} h5 {[%emt 0:00:00]} 52. d6 {[%emt 0:01:49]} h4+ {[%emt 0:00:00]} 53. Kg2 {[%emt 0:01:21]} h3+ {[%emt 0:00:00]} 54. Kxh3 {[%emt 0:00:19]} Qxf2 {[%emt 0:00:00]} 55. Qc8+ {[%emt 0:01:53]} Kf7 {[%emt 0:00:00]} 56. Qd7+ {[%emt 0:01:03]} Kf8 {[%emt 0:00:00]} 57. Qe7+ {[%emt 0:00:48]} Kg8 {[%emt 0:00:00]} 58. Kg4 {[%emt 0:04:37]} Qf5+ {[%emt 0:00:00]} 59. Kg3 {[%emt 0:00:08]} Qd3+ {[%emt 0:00:00]} 60. Kf4 {[%emt 0:00:23]} Qf5+ {[%emt 0:00:00]} 61. Ke3 {[%emt 0:00:22]} Qc5+ {[%emt 0:00:00]} 62. Ke4 {[%emt 0:00:32]} Qf5+ {[%emt 0:00:00]} 63. Kd4 {[%emt 0:00:08]} Qf2+ {[%emt 0:00:00]} 64. Kd5 {[%emt 0:00:31]} Qa2+ {[%emt 0:00:00]} 65. Kc6 {[%emt 0:00:23]} Qa6+ {[%emt 0:00:00]} 66. Kd7 {[%emt 0:00:33]} Qb7+ {[%emt 0:00:00]} 67. Ke6 {[%emt 0:01:03]} Qe4+ {[%emt 0:00:00]} 68. Kd7 {[%emt 0:00:08]} Qb7+ {[%emt 0:00:00]} 69. Ke6 {[%emt 0:00:55]} 1/2-1/2

[Event "Festival Groningen-A 2024"]
[Site "Groningen"]
[Date "2024.12.24"]
[Round "4.30"]
[White "Wouters, Casper"]
[Black "Boeren, Jurriaan"]
[Result "0-1"]
[ECO "C54"]
[WhiteElo "2110"]
[BlackElo "2147"]
[Annotator "RC"]
[PlyCount "98"]
[EventDate "2024.12.21"]
[EventType "swiss"]
[EventCountry "NED"]
[SourceTitle "playchess.com"]
[Source "ChessBase"]
[SourceQuality "1"]
[TimeControl "40/5400+30:1800+30"]

1. e4 {[%emt 0:00:03]} e5 {[%emt 0:00:04]} 2. Nf3 {[%emt 0:00:09]} Nc6 {[%emt 0:00:04]} 3. Bc4 {[%emt 0:00:07]} Nf6 {[%emt 0:00:06]} 4. d3 {[%emt 0:00:07]} Bc5 {[%emt 0:00:21]} 5. c3 {[%emt 0:00:10]} a6 {[%emt 0:00:13]} 6. O-O {[%emt 0:00:20]} d6 {[%emt 0:00:16]} 7. a4 {[%emt 0:00:32]} Ba7 {[%emt 0:00:04]} 8. Re1 {[%emt 0:00:16]} O-O {[%emt 0:00:13]} 9. h3 {[%emt 0:00:17]} h6 {[%emt 0:00:25]} 10. Nbd2 {[%emt 0:00:37]} Re8 {[%emt 0:00:19]} 11. b4 {[%emt 0:00:26]} Be6 {[%emt 0:00:13]} 12. Bxe6 {[%emt 0:00:27]} Rxe6 {[%emt 0:00:02]} 13. Bb2 {[%emt 0:00:19]} Qd7 {[%emt 0:03:51]} 14. Nb3 {[%emt 0:09:07]} Ne7 {[%emt 0:22:08]} 15. Qc2 {[%emt 0:06:57]} Ng6 {[%emt 0:06:48]} 16. d4 {[%emt 0:08:25]} Nf4 {[%emt 0:07:07]} 17. c4 {[%emt 0:13:20]} N6h5 {[%emt 0:05:35]} 18. Re3 {[%emt 0:24:54]} Qe7 {[%emt 0:22:49]} 19. Kh2 {[%emt 0:04:11]} Re8 {[%emt 0:06:35]} 20. g3 {[%emt 0:05:08]} Ng6 {[%emt 0:00:18]} 21. Rae1 {[%emt 0:02:10]} Nf6 {[%emt 0:02:33]} 22. d5 {[%emt 0:12:16]} Bxe3 {[%emt 0:00:38]} 23. Rxe3 {[%emt 0:00:25]} Nxd5 {[%emt 0:03:03]} 24. cxd5 {[%emt 0:00:04]} Rf6 {[%emt 0:00:03]} 25. Nbd2 {[%emt 0:02:01]} Qd7 {[%emt 0:02:25]} 26. Rc3 {[%emt 0:01:05]} Re7 {[%emt 0:00:05]} 27. Kg2 {[%emt 0:01:00]} h5 {[%emt 0:00:52]} 28. h4 {[%emt 0:00:52]} Qg4 {[%emt 0:00:16]} 29. Kf1 {[%emt 0:00:55]} Nf8 {[%emt 0:01:43]} 30. Ke2 {[%emt 0:00:40]} Nh7 {[%emt 0:16:21]} 31. Nf1 {[%emt 0:02:36]} g5 {[%emt 0:00:00]} 32. Qb1 {[%emt 0:02:46]} gxh4 {[%emt 0:00:00]} 33. gxh4 {[%emt 0:00:07]} Rf4 {[%emt 0:00:00]} 34. Re3 {[%emt 0:00:24]} f5 {[%emt 0:00:00]} 35. N1h2 {[%emt 0:00:21]} Qg2 {[%emt 0:00:00]} 36. Qf1 {[%emt 0:03:18]} Qxf1+ {[%emt 0:00:00]} 37. Nxf1 {[%emt 0:00:18]} fxe4 {[%emt 0:00:00]} 38. N3d2 {[%emt 0:00:45]} Nf6 {[%emt 0:00:00]} 39. Rg3+ {[%emt 0:00:21]} Ng4 {[%emt 0:00:00]} 40. Ke1 {[%emt 0:01:01]} Kh7 {[%emt 0:00:00]} 41. Bc3 {[%emt 0:14:15]} Ref7 {[%emt 0:03:37]} 42. Ne3 {[%emt 0:05:44]} Nxf2 {[%emt 0:02:36]} 43. Ng2 {[%emt 0:01:16]} Rg4 {[%emt 0:06:53]} 44. Rxg4 {[%emt 0:00:55]} hxg4 {[%emt 0:01:19]} 45. Ke2 {[%emt 0:00:58]} Kg6 {[%emt 0:02:00]} 46. Nf1 {[%emt 0:01:52]} Nd3 {[%emt 0:01:45]} 47. Be1 {[%emt 0:00:59]} Nc1+ {[%emt 0:00:51]} 48. Kd1 {[%emt 0:00:28]} Rxf1 {[%emt 0:00:09]} 49. Kxc1 {[%emt 0:00:29]} Rg1 {[%emt 0:00:06]} 0-1